bitfinex-derivatives/quotes_ETHF0:USTF0_20251028
["timestamp","ask_amount","ask_price","bid_price","bid_amount"]
[1761683377500,3.5265,3978.8,3978.1,4.433]
[1761683378200,5.8215,3978.1,3978.0,3.21089583]
[1761683378398,8.1753,3978.1,3978.0,0.00309583]
[1761683378589,3.5265,3977.6,3976.6,3.2078]
[1761683378792,3.5265,3977.6,3976.7,4.428]
[1761683378793,2.295,3976.8,3976.7,4.428]
[1761683379011,3.5265,3976.7,3976.2,3.2078]
[1761683379307,3.5265,3976.7,3976.3,4.427]
[1761683379604,3.5265,3976.7,3976.3,4.42889534]
[1761683379605,3.5290829,3976.7,3976.3,4.42889534]
[1761683379992,3.5290829,3976.7,3976.3,6.38829534]
[1761683380293,0.0025829,3976.7,3976.4,1.9594]
[1761683380605,3.4403829,3976.7,3976.3,4.42889534]
[1761683380802,3.4403829,3976.7,3976.3,0.00189534]
[1761683380803,3.4378,3976.5,3976.3,0.00189534]
[1761683381004,4.05741341,3976.4,3976.3,0.00189534]
[1761683381400,3.4378,3976.4,3976.3,0.00189534]
[1761683382506,3.4378,3976.4,3976.3,4.42689534]
[1761683383402,7.9666,3976.4,3976.3,4.42689534]
[1761683384998,5.6113,3975.4,3975.3,0.02509989]
[1761683385205,5.6113,3975.4,3975.3,4.43409989]
[1761683385206,3.4378,3975.4,3975.3,4.43409989]
[1761683385410,3.4378,3975.9,3975.3,8.35289989]
[1761683385804,3.4378,3975.9,3975.4,4.41]
[1761683386910,3.4378,3975.9,3975.3,0.02791262]
[1761683387114,7.9666,3975.4,3975.3,0.02791262]
[1761683387610,7.9666,3975.4,3975.3,4.43091262]
[1761683387999,7.9666,3975.4,3975.3,4.42991262]
[1761683388405,7.9666,3975.4,3975.3,0.02791262]
[1761683394023,3.2078,3975.0,3971.9,3.2078]
[1761683394229,7.9666,3972.9,3972.3,3.2078]
[1761683394821,4.7416,3972.8,3971.1,2.0125]
[1761683395019,3.4378,3972.4,3971.6,3.2078]
[1761683395320,3.4378,3972.4,3971.6,3.21070052]
[1761683395624,3.4378,3972.4,3971.6,0.00290052]
[1761683395921,4.7416,3971.7,3971.6,0.00290052]
[1761683396121,4.7416,3971.7,3971.6,5.2e-07]
[1761683396321,3.4378,3970.7,3969.2,2.0154]
[1761683396622,3.2078,3970.2,3969.4,2.0154]
[1761683396822,3.4378,3970.1,3969.0,3.6594]
[1761683397023,4.7416,3969.9,3969.0,2.0154]
[1761683397325,3.4378,3969.6,3969.1,4.42]
[1761683397621,3.4378,3969.1,3969.0,0.00254803]
[1761683397926,3.4378,3969.1,3969.0,4.42154803]
[1761683398124,3.4378,3969.1,3969.0,0.00254803]
[1761683398620,3.4378,3969.1,3969.0,4.41954803]
[1761683398813,3.2078,3969.6,3969.0,4.41954803]
[1761683399014,3.4378,3969.5,3969.1,0.0752]
[1761683399218,0.00281588,3969.9,3969.3,2.0154]
[1761683399419,0.00281588,3969.9,3969.2,3.2078]
[1761683399420,0.00281588,3969.9,3969.5,2.0154]
[1761683399622,6.64841588,3969.9,3969.6,4.417]
[1761683399827,3.4378,3969.8,3969.7,4.415]
[1761683400128,3.4378,3969.8,3969.5,4.415]
[1761683400326,3.4378,3969.8,3969.6,4.414]
[1761683400520,3.21061588,3969.9,3969.1,3.283]
[1761683400824,3.4378,3969.2,3969.0,0.00254803]
[1761683401130,1.30661588,3969.9,3969.5,2.0154]
[1761683401131,0.00281588,3969.9,3969.5,2.0154]
[1761683401424,3.2078,3970.7,3969.9,2.0154]
[1761683401723,2.72728195,3970.7,3970.3,2.0154]
[1761683401930,3.2078,3972.0,3971.3,2.0154]
[1761683402118,3.2078,3972.0,3971.5,2.0154]
[1761683402319,0.00230049,3972.0,3971.6,6.4294]
[1761683402524,0.00230049,3972.0,3971.0,3.2078]
[1761683402725,3.4378,3971.8,3970.6,5.2232]
[1761683402921,3.4378,3971.0,3970.7,4.412]
[1761683403231,3.4378,3970.9,3970.5,4.412]
[1761683403424,1.3038,3971.0,3969.7,3.2078]
[1761683403425,3.4378,3970.6,3969.7,3.2078]
[1761683403821,4.7416,3970.0,3969.8,4.412]
[1761683404418,3.4378,3970.0,3969.8,4.412]
[1761683404626,3.4378,3969.9,3969.1,2.0154]
[1761683404931,3.2078,3969.8,3969.3,2.0154]
[1761683405234,6.6456,3969.8,3969.3,2.0154]
[1761683405526,3.4378,3969.7,3969.4,4.407]
[1761683405828,3.4378,3969.7,3969.0,0.00254803]
[1761683406325,3.2078,3969.2,3969.0,0.00254803]
[1761683406531,3.4378,3969.1,3969.0,0.00254803]
[1761683406731,3.4378,3969.1,3969.0,4.40654803]
[1761683407228,3.4378,3969.1,3969.0,0.00254803]
[1761683408432,0.00217047,3969.2,3969.0,0.00254803]
[1761683408733,3.2347,3969.1,3969.0,0.00254803]
[1761683410135,3.3459,3969.1,3969.0,0.00254803]
[1761683410338,3.3459,3969.1,3969.0,4.39654803]
[1761683410630,3.3459,3969.1,3969.0,4.39354803]
[1761683411637,3.3459,3969.1,3969.0,0.00254803]
[1761683411838,3.3459,3968.0,3967.8,0.02520288]
[1761683412033,4.7005,3969.0,3967.9,5.2317]
[1761683412332,0.00217047,3969.2,3968.8,2.0239]
[1761683412525,0.00217047,3969.2,3969.0,2.47742]
[1761683412729,0.00217047,3969.2,3969.0,2.02662843]
[1761683413140,0.00217047,3969.2,3969.1,4.403]
[1761683413341,0.00217047,3969.2,3969.1,6.4269]
[1761683413536,3.34807047,3969.2,3969.0,0.00272843]
[1761683413738,3.34807047,3969.2,3969.1,4.4]
[1761683413939,3.34807047,3969.2,3969.0,0.00272843]
[1761683414140,3.34807047,3969.2,3969.1,4.4]
[1761683414345,3.34807047,3969.2,3969.0,0.00272843]
[1761683414736,0.00217047,3969.2,3969.0,2.02662843]
[1761683415042,0.26726204,3971.0,3969.0,2.02662843]
[1761683415043,3.3459,3970.6,3969.8,2.0239]
[1761683415238,3.2078,3970.9,3969.1,3.28062318]
[1761683415239,3.2078,3970.9,3970.1,2.0239]
[1761683415439,3.2078,3971.3,3970.7,2.0239]
[1761683415650,3.2078,3972.1,3971.3,2.0239]
[1761683415941,3.2078,3972.1,3971.5,2.0239]
[1761683416336,3.2078,3972.1,3971.6,6.4279]
[1761683416535,6.55652994,3972.1,3971.6,6.4279]
[1761683416736,3.3459,3972.0,3971.6,4.404]
[1761683416934,3.21062994,3972.1,3971.7,2.0239]
[1761683417234,3.3459,3971.9,3970.7,5.2317]
[1761683417430,3.21062994,3972.1,3971.1,3.2078]
[1761683417644,3.21062994,3972.1,3971.5,2.0239]
[1761683417845,3.21062994,3972.1,3971.7,2.0239]
[1761683418041,0.00282994,3972.1,3971.9,2.0239]
[1761683418236,3.2078,3973.3,3972.4,2.0211]
[1761683418542,3.3459,3973.2,3972.5,4.398]
[1761683419036,3.3459,3973.2,3971.9,2.0211]
[1761683419037,3.3459,3973.2,3972.6,4.396]
[1761683419350,3.3485894,3973.2,3972.6,4.39910321]
[1761683419537,3.3459,3972.8,3972.7,4.393]
[1761683419732,3.3459,3972.8,3971.5,5.2289]
[1761683419936,3.3459,3972.4,3971.6,4.392]
[1761683420235,3.3459,3972.0,3971.1,3.2078]
[1761683420429,3.3459,3972.0,3971.2,4.391]
[1761683420634,3.3459,3972.0,3971.2,4.39334206]
[1761683420834,3.3459,3972.0,3971.3,4.388]
[1761683420835,3.3459,3971.9,3971.3,4.388]
[1761683421046,3.2078,3972.5,3971.7,2.0211]
[1761683421344,3.2078,3972.9,3972.0,2.47427]
[1761683421539,3.2078,3972.9,3972.2,2.47426]
[1761683421940,0.0026894,3973.2,3972.4,2.0211]
[1761683422242,3.3459,3974.3,3973.1,2.0211]
[1761683422435,3.2078,3974.5,3973.8,2.0211]
[1761683422635,3.2078,3974.5,3973.9,4.385]
[1761683422837,3.2078,3974.5,3973.9,4.83796]
[1761683423134,3.2078,3974.5,3973.9,4.385]
[1761683423332,3.21064242,3974.5,3973.9,4.83795]
[1761683423738,0.00284242,3974.5,3974.3,2.0211]
[1761683424041,0.00284242,3974.5,3974.3,2.02412621]
[1761683424345,0.00284242,3974.5,3974.4,2.0963]
[1761683424643,0.00284242,3974.5,3974.4,6.4001]
[1761683424843,3.2078,3975.3,3974.5,2.47119]
[1761683425140,3.3459,3976.0,3975.2,5.2261]
[1761683425347,3.2078,3976.5,3975.7,2.0183]
[1761683425646,3.2078,3976.9,3976.1,2.0183]
[1761683425943,3.3459,3976.4,3975.5,3.2078]
[1761683426150,3.21106528,3976.9,3976.0,3.2078]
[1761683426342,3.21106528,3976.9,3976.1,4.373]
[1761683426642,3.3459,3976.8,3976.0,3.2078]
[1761683426941,3.3459,3976.2,3975.1,4.385]
[1761683427148,3.2078,3976.1,3975.2,4.4652]
[1761683427447,3.2078,3976.1,3975.2,7.75205164]
[1761683427642,0.00326528,3976.9,3975.2,7.75205164]
[1761683427643,6.5537,3975.7,3975.2,4.39]
[1761683427848,6.5537,3975.3,3974.3,3.21082621]
[1761683428049,1.3546,3976.5,3974.4,4.392]
[1761683428050,3.2078,3974.7,3974.4,4.392]
[1761683428347,3.2078,3975.4,3974.5,4.39]
[1761683428645,3.2078,3975.4,3974.6,1.3536]
[1761683428840,3.2078,3976.3,3975.6,1.3536]
[1761683429043,3.2078,3976.3,3975.8,1.3536]
[1761683429237,3.2078,3976.3,3976.1,1.3536]
[1761683429852,3.2078,3976.3,3976.2,4.386]
[1761683430647,6.5537,3976.3,3976.2,4.384]
[1761683430945,3.3459,3976.2,3975.1,3.2078]
[1761683431250,1.3546,3976.5,3975.3,1.3536]
[1761683431251,3.2078,3975.5,3975.3,1.3536]
[1761683431451,3.2078,3976.3,3975.4,7.5948]
[1761683431753,3.2078,3976.3,3976.1,0.45271]
[1761683432048,3.2078,3976.3,3976.2,4.387]
[1761683432251,3.3459,3976.6,3976.2,4.387]
[1761683432847,3.2078,3976.7,3976.3,0.0752]
[1761683433040,0.00326528,3976.9,3976.4,0.45267]
[1761683433246,0.00326528,3976.9,3976.3,0.0752]
[1761683433453,0.00326528,3976.9,3976.7,0.45263]
[1761683433651,0.00326528,3976.9,3976.8,4.378]
[1761683433848,0.00326528,3976.9,3976.8,7.73442859]
[1761683434050,0.00326528,3976.9,3976.6,3.66045]
[1761683434252,0.00326528,3976.9,3976.8,4.378]
[1761683434646,0.00326528,3976.9,3976.8,4.4532]
[1761683434953,0.022,3977.8,3977.5,0.45255]
[1761683435152,0.022,3977.8,3977.6,4.375]
[1761683435657,0.022,3977.8,3977.6,4.82754]
[1761683435850,0.022,3977.8,3977.7,0.0752]
[1761683436155,3.37003278,3977.8,3977.7,0.00312427]
[1761683436360,3.37003278,3977.8,3977.7,4.37312427]
[1761683436850,0.02413278,3977.8,3977.7,4.37012427]
[1761683437349,0.02413278,3977.8,3977.7,4.44532427]
[1761683437648,0.02413278,3977.8,3977.7,4.37012427]
[1761683437856,0.02413278,3977.8,3977.7,7.57792427]
[1761683438050,0.02413278,3977.8,3977.7,4.37012427]
[1761683439456,0.02413278,3977.8,3977.7,8.03045427]
[1761683439657,0.02413278,3977.8,3977.7,8.10565427]
[1761683439957,0.02413278,3977.8,3977.7,16.03045427]
[1761683440254,0.02413278,3977.8,3977.7,4.80965427]
[1761683440454,0.02413278,3977.8,3977.7,8.11822225]
[1761683440657,6.5834,3978.9,3978.5,0.45244]
[1761683440855,3.3756,3978.8,3978.6,4.351]
[1761683441256,3.3756,3978.8,3978.0,3.2078]
[1761683441257,3.3756,3978.8,3978.7,4.351]
[1761683441755,3.3756,3978.8,3978.0,3.2078]
[1761683441756,3.37772284,3978.8,3978.0,3.2078]
[1761683442054,1.68984847,3978.8,3978.2,0.45246]
[1761683442253,1.68984847,3978.8,3978.0,3.2078]
[1761683442453,1.68984847,3978.8,3978.1,4.351]
[1761683443159,1.68984847,3978.8,3978.1,4.4262]
[1761683443361,1.68984847,3978.8,3978.3,2.12945]
[1761683443659,1.68984847,3978.8,3978.3,2.12946]
[1761683444059,1.68984847,3978.8,3978.4,0.45245]
[1761683444361,1.68984847,3978.8,3978.5,4.35]
[1761683445950,1.68984847,3978.8,3978.6,4.35]
[1761683446151,1.68984847,3978.8,3978.2,0.45247]
[1761683446152,0.00212284,3978.8,3978.7,6.47942]
[1761683446656,0.27990835,3980.7,3978.3,3.3283799]
[1761683446657,3.3756,3979.2,3978.3,3.3283799]
[1761683446859,3.3756,3978.6,3978.4,4.35]
[1761683447059,3.3756,3978.6,3978.5,4.35]
[1761683447452,0.00187492,3978.6,3978.5,4.35]
[1761683448052,0.00187492,3978.6,3978.1,3.2078]
[1761683448261,0.00187492,3978.6,3978.2,4.349]
[1761683448462,0.00187492,3978.6,3978.3,4.349]
[1761683448761,0.00187492,3978.6,3978.4,4.349]
[1761683448957,0.00187492,3978.6,3977.7,0.00312427]
[1761683449263,3.2078,3978.3,3977.8,4.349]
[1761683449461,3.3756,3978.3,3977.8,7.5568]
[1761683449661,3.3756,3978.2,3977.8,4.349]
[1761683449863,3.3756,3978.2,3977.7,0.00312427]
[1761683450162,3.2078,3977.9,3977.8,4.349]
[1761683450658,0.00187492,3978.6,3977.8,4.349]
[1761683450659,3.2078,3978.3,3977.8,4.349]
[1761683450853,3.3756,3978.2,3977.8,6.121]
[1761683451059,3.3756,3978.2,3977.9,0.45251]
[1761683451264,3.2078,3978.3,3977.9,1.772]
[1761683451465,3.2078,3978.3,3978.1,1.772]
[1761683451671,6.5834,3978.3,3978.2,4.349]
[1761683453164,0.00187492,3978.6,3978.4,2.22445]
[1761683453463,0.00187492,3978.6,3978.5,1.772]
[1761683453768,3.2078,3979.3,3978.5,1.772]
[1761683453769,3.2078,3979.3,3979.1,2.22437]
[1761683453962,3.2078,3979.3,3979.2,4.348]
[1761683454159,6.5834,3979.3,3979.2,4.348]
[1761683454358,3.2078,3979.3,3979.2,4.348]
[1761683454864,3.3756,3979.3,3979.2,4.348]
[1761683455067,3.3788342,3979.3,3979.2,4.348]
[1761683455367,3.3788342,3979.3,3977.9,1.13125]
[1761683455368,3.3756,3979.1,3977.9,3.2078]
[1761683455563,3.3756,3978.6,3977.7,0.00312427]
[1761683455767,3.3756,3978.2,3977.7,0.00312427]
[1761683456465,3.3756,3977.8,3977.7,0.00312427]
[1761683456767,3.3756,3977.8,3977.7,4.35112427]
[1761683457369,1.4012,3978.4,3977.7,4.35112427]
[1761683457370,3.3756,3978.3,3977.7,4.35112427]
[1761683457867,3.3756,3977.9,3977.8,4.347]
[1761683458265,8.51051537,3977.9,3977.8,4.347]
[1761683458965,3.3756,3978.3,3977.9,0.45251]
[1761683459260,3.2078,3978.5,3978.3,0.45245]
[1761683459466,3.2078,3979.1,3978.8,1.772]
[1761683459667,3.2078,3979.1,3979.0,0.45238]
[1761683459870,3.3756,3979.5,3979.0,1.772]
[1761683460172,3.3788342,3979.3,3978.9,4.347]
[1761683460467,3.3756,3977.9,3976.8,3.2078]
[1761683460666,3.3756,3978.3,3977.8,9.3268]
[1761683460969,3.3756,3978.4,3977.9,4.347]
[1761683461167,3.3756,3978.2,3978.0,4.347]
[1761683461364,3.3756,3978.2,3978.1,4.347]
[1761683461665,3.9775678,3978.2,3978.1,0.00314702]
[1761683461866,3.3756,3977.9,3977.3,3.24218463]
[1761683462072,3.3756,3977.0,3976.9,4.347]
[1761683462269,3.2078,3977.4,3976.9,4.347]
[1761683462663,3.3756,3977.3,3976.9,4.347]
[1761683462871,3.3756,3977.8,3977.1,0.4526]
[1761683463064,3.3756,3977.8,3977.2,0.45258]
[1761683463259,1.4012,3978.0,3977.1,1.772]
[1761683463464,6.5834,3978.3,3977.7,3.2078]
[1761683463465,3.3756,3978.3,3977.7,3.2078]
[1761683463669,3.2078,3978.7,3977.7,3.2078]
[1761683463670,3.2078,3978.7,3978.0,0.45249]
[1761683463869,3.2078,3978.7,3978.1,3.2078]
[1761683464268,3.3756,3978.2,3977.3,16.857]
[1761683464572,3.3756,3978.2,3976.2,0.5642]
[1761683464573,3.3756,3977.0,3976.2,4.347]
[1761683464875,3.3756,3977.0,3976.3,4.351]
[1761683464876,3.3756,3976.9,3976.3,4.351]
[1761683465169,3.3756,3976.3,3975.4,3.2078]
[1761683465376,3.3756,3976.3,3975.5,4.348]
[1761683465674,3.2078,3976.4,3974.6,3.2078]
[1761683465675,3.3756,3975.5,3974.6,3.2078]
[1761683465867,3.2078,3975.6,3974.8,1.772]
[1761683466067,3.3756,3975.5,3974.7,4.35]
[1761683466364,3.3756,3974.9,3974.7,0.00252714]
[1761683466567,3.3756,3974.9,3974.8,4.35]
[1761683466871,6.5834,3974.9,3974.8,4.35]
[1761683467073,0.00189747,3975.5,3974.8,4.35]
[1761683467074,3.3756,3975.4,3974.8,4.35]
[1761683467273,3.20969747,3975.5,3974.8,4.35]
[1761683467274,3.3756,3975.0,3974.8,4.35]
[1761683467476,4.7768,3975.0,3974.9,4.349]
[1761683467676,4.7768,3975.0,3974.7,0.00252714]
[1761683467677,3.3756,3974.9,3974.7,0.00252714]
[1761683468364,3.2179,3974.7,3974.3,4.348]
[1761683468567,6.4257,3974.4,3974.3,4.348]
[1761683469280,6.4257,3974.4,3974.3,4.3508098]
[1761683469576,7.8269,3975.0,3974.3,4.3508098]
[1761683469972,3.2318,3975.4,3974.6,1.3533]
[1761683470177,3.2078,3975.9,3975.7,0.45275]
[1761683470378,3.2078,3975.9,3974.9,1.13213]
[1761683470379,3.2318,3976.6,3975.8,8.9101]
[1761683470580,3.2318,3976.6,3975.9,4.349]
[1761683471076,3.2078,3976.7,3976.3,1.80599]
[1761683471272,0.00219951,3976.6,3976.3,1.80599]
[1761683471470,3.2078,3977.5,3976.5,4.5611]
[1761683471779,3.2318,3977.4,3976.5,3.2078]
[1761683471980,3.2318,3977.4,3976.6,4.353]
[1761683472171,3.2078,3977.5,3976.7,1.3511]
[1761683472372,3.2078,3977.9,3977.2,0.45258]
[1761683472582,3.20977193,3977.9,3977.3,4.35]
[1761683473076,0.00197193,3977.9,3977.4,7.75675093]
[1761683473273,0.00197193,3977.9,3977.4,6.85821093]
[1761683473575,0.00197193,3977.9,3977.8,4.5589]
[1761683473875,0.00197193,3977.9,3977.8,8.9079]
[1761683474070,0.00197193,3977.9,3977.8,7.5568]
[1761683474274,3.23377193,3977.9,3977.8,4.349]
[1761683476081,3.2318,3977.5,3977.2,0.00277422]
[1761683476269,3.2318,3977.2,3975.6,15.54177]
[1761683476475,3.2318,3976.3,3975.7,3.427]
[1761683477169,6.4396,3975.9,3975.0,3.2078]
[1761683477373,6.4396,3975.9,3975.8,4.348]
[1761683477574,6.4396,3975.9,3974.6,3.2078]
[1761683477776,3.2318,3975.8,3975.4,4.348]
[1761683478180,3.2318,3975.8,3975.4,4.34990497]
[1761683480079,3.2318,3975.8,3975.4,0.00190497]
[1761683480378,3.2318,3975.8,3975.5,4.349]
[1761683480877,3.2318,3975.8,3975.4,0.00190497]
[1761683481081,3.2318,3975.8,3975.6,4.349]
[1761683481383,3.2078,3975.9,3975.6,4.349]
[1761683481679,6.4396,3976.3,3975.6,4.349]
[1761683481882,6.4396,3975.7,3975.6,4.349]
[1761683482085,6.4396,3976.2,3975.6,4.349]
[1761683482282,3.2318,3976.1,3975.6,4.349]
[1761683482483,3.2078,3976.2,3976.0,0.45271]
[1761683482680,3.2078,3976.7,3976.5,1.80377]
[1761683482978,1.3242,3977.0,3976.2,3.2078]
[1761683483181,3.2318,3976.9,3976.6,4.349]
[1761683483381,3.2318,3976.9,3976.7,4.349]
[1761683483979,3.2078,3977.1,3976.7,4.349]
[1761683484380,3.2318,3977.0,3976.7,4.349]
[1761683486684,3.2318,3976.9,3976.7,4.349]
[1761683487482,1.3242,3979.0,3976.7,4.349]
[1761683487483,3.20977193,3977.9,3976.9,1.80372]
[1761683487791,3.2318,3977.3,3976.7,3.2078]
[1761683487989,3.2318,3977.3,3977.0,4.348]
[1761683488182,3.2318,3977.3,3975.8,3.2078]
[1761683488183,3.2318,3976.9,3975.8,3.2078]
[1761683488383,1.3242,3976.0,3975.9,4.348]
[1761683488678,3.2318,3975.9,3975.2,0.4528]
[1761683488886,3.2318,3975.9,3975.5,4.348]
[1761683489489,3.2318,3975.6,3975.5,4.348]
[1761683490289,3.2078,3975.7,3975.5,4.348]
[1761683490490,3.2318,3975.6,3975.5,4.348]
[1761683491382,3.2318,3975.9,3975.6,0.45277]
[1761683491584,3.2318,3976.4,3975.6,0.45276]
[1761683491890,3.2318,3976.1,3975.6,0.45277]
[1761683492193,3.2318,3976.1,3975.7,4.348]
[1761683492387,3.2318,3976.1,3975.3,0.02509989]
[1761683492586,3.2078,3976.0,3975.8,4.347]
[1761683492789,3.2318,3975.9,3975.8,4.347]
[1761683493684,3.2318,3975.9,3975.3,0.02509989]
[1761683493891,6.4396,3975.5,3975.3,4.37209989]
[1761683496787,6.4396,3975.5,3975.3,0.02509989]
[1761683496983,3.2318,3975.4,3975.3,4.86e-06]
[1761683497389,3.2318,3975.4,3973.6,1.13248]
[1761683497390,3.2318,3975.2,3973.8,3.66077]
[1761683497582,3.2318,3974.5,3974.0,3.0394]
[1761683497896,3.2318,3974.5,3973.9,4.347]
[1761683497897,3.2318,3974.3,3973.9,4.347]
[1761683498190,3.2318,3974.3,3974.0,0.0032419]
[1761683498782,6.4396,3974.1,3974.0,0.0032419]
[1761683498979,3.2318,3974.0,3972.9,3.0394]
[1761683499189,3.2078,3973.8,3973.1,3.0394]
[1761683499388,3.2078,3973.4,3973.1,3.0394]
[1761683499580,3.0376,3973.3,3973.0,4.347]
[1761683499783,3.0376,3973.3,3972.8,0.02517116]
[1761683499991,6.2454,3972.9,3972.8,0.02770738]
[1761683500485,3.2078,3973.6,3972.9,3.0066]
[1761683501081,3.2078,3973.6,3973.4,0.45301]
[1761683501284,3.2078,3973.6,3973.5,8.5654]
[1761683501588,3.04066154,3974.5,3973.5,5.5588]
[1761683501589,3.2078,3974.1,3973.5,5.5588]
[1761683501789,3.2078,3974.1,3973.6,3.0066]
[1761683502088,3.21086154,3974.5,3974.4,3.0066]
[1761683502289,3.21086154,3974.5,3974.4,7.3536]
[1761683503189,6.24846154,3974.5,3973.9,3.0066]
[1761683503390,3.0376,3974.4,3974.0,4.347]
[1761683503885,3.21086154,3974.5,3974.1,3.0066]
[1761683504392,6.24846154,3974.5,3974.1,3.0066]
[1761683504787,3.21086154,3974.5,3974.1,3.0066]
[1761683504988,0.00306154,3974.5,3974.4,4.2184]
[1761683505183,0.00306154,3974.5,3974.4,7.4262]
[1761683505392,3.2078,3975.3,3974.5,3.0066]
[1761683505587,3.2078,3975.7,3975.0,3.0066]
[1761683505795,3.2078,3975.7,3975.1,4.346]
[1761683506091,3.2078,3975.7,3975.2,3.0066]
[1761683506288,3.21027913,3975.7,3975.2,3.0066]
[1761683506490,6.24787913,3975.7,3975.2,3.0066]
[1761683506794,3.2078,3975.3,3975.2,3.0066]
[1761683507893,3.0376,3975.2,3974.7,3.0066]
[1761683508098,3.2078,3974.9,3974.8,7.3526]
[1761683508396,6.2454,3974.9,3974.8,4.346]
[1761683508599,3.0376,3974.8,3973.6,3.0066]
[1761683508787,3.0376,3973.9,3973.2,3.2078]
[1761683508990,3.2078,3973.6,3973.1,3.0066]
[1761683509292,3.2078,3973.6,3973.4,3.0066]
[1761683509696,3.2078,3973.6,3973.3,4.345]
[1761683509897,3.2078,3973.6,3973.4,3.0066]
[1761683510197,3.2078,3973.6,3973.3,4.345]
[1761683510198,6.1454,3973.6,3973.3,4.345]
[1761683510895,3.1078,3973.6,3973.4,3.0066]
[1761683511100,3.2078,3974.0,3973.4,3.0066]
[1761683511996,6.2454,3974.0,3973.3,4.345]
[1761683512200,3.0376,3973.9,3973.3,4.345]
[1761683512699,3.2078,3973.6,3973.3,7.3516]
[1761683513194,6.2454,3973.6,3973.3,4.345]
[1761683513401,3.2078,3973.6,3973.4,3.0066]
[1761683513803,7.1377,3973.4,3973.3,4.345]
[1761683513997,3.2078,3973.6,3973.3,7.3516]
[1761683514198,3.2078,3973.6,3973.4,3.0066]
[1761683514604,3.0376,3973.8,3973.4,3.0066]
[1761683514901,3.2078,3973.6,3973.4,3.0066]
[1761683515402,3.2078,3974.0,3973.9,7.1277]
[1761683515700,3.0376,3973.6,3973.2,4.344]
[1761683515997,5.2458,3973.3,3973.2,4.344]
[1761683516202,10.3455,3973.3,3973.2,4.344]
[1761683516690,7.1377,3972.9,3972.5,4.344]
[1761683516895,10.34741004,3972.9,3972.5,4.344]
[1761683517299,3.6997,3972.8,3971.5,3.0066]
[1761683517502,3.2078,3972.1,3971.7,3.0066]
[1761683517704,6.2454,3972.1,3971.7,3.0066]
[1761683518200,3.0376,3972.0,3971.7,0.00223475]
[1761683518700,3.2078,3972.1,3970.2,3.0066]
[1761683518701,3.0353,3971.6,3970.2,3.0066]
[1761683518904,0.6537,3971.7,3969.7,3.0066]
[1761683518905,3.0353,3970.6,3969.7,3.0066]
[1761683519101,3.0353,3970.2,3969.8,4.343]
[1761683519297,3.2078,3970.3,3969.9,3.0066]
[1761683519497,3.2078,3970.3,3970.0,3.46]
[1761683519696,3.2078,3970.3,3970.0,3.00900675]
[1761683520394,3.2078,3970.8,3970.2,3.0066]
[1761683520592,3.0353,3971.4,3970.0,0.00240675]
[1761683520593,6.2431,3971.4,3970.6,3.0066]
[1761683520793,6.2431,3971.4,3970.7,7.3496]
[1761683520993,3.2078,3971.4,3970.8,3.0066]
[1761683521199,4.343,3972.2,3970.7,4.343]
[1761683521200,3.2078,3970.9,3970.7,4.343]
[1761683521406,3.2078,3970.9,3970.0,0.00240675]
[1761683521407,3.0353,3970.8,3970.6,4.344]
[1761683521607,6.2431,3970.9,3970.6,4.344]
[1761683521901,3.2078,3970.9,3970.7,3.0066]
[1761683522097,3.2078,3971.3,3970.7,3.0066]
[1761683522500,3.2078,3971.3,3970.9,3.0066]
[1761683522700,3.2078,3971.7,3971.1,3.0066]
[1761683523001,0.27083928,3974.1,3971.1,3.0066]
[1761683523002,3.2078,3972.3,3971.8,3.0066]
[1761683523204,3.2078,3971.9,3971.0,6.29500438]
[1761683523502,3.0353,3972.2,3971.3,3.0066]
[1761683523900,3.0353,3972.2,3971.4,4.344]
[1761683524106,3.0353,3971.8,3971.5,4.343]
[1761683524303,3.2078,3971.9,3971.5,7.3496]
[1761683524498,6.2431,3972.3,3971.6,3.0066]
[1761683525110,3.0353,3971.7,3970.8,3.2078]
[1761683525316,3.0353,3971.1,3970.3,3.2078]
[1761683525608,3.0353,3970.8,3970.3,7.5508]
[1761683525805,3.0353,3970.8,3970.3,4.343]
[1761683526205,3.2078,3971.2,3970.4,3.0066]
[1761683526397,3.0353,3971.1,3970.5,4.343]
[1761683526710,6.2431,3971.6,3970.8,3.0066]
[1761683526907,6.2431,3971.6,3970.7,3.2078]
[1761683526908,6.2431,3971.6,3970.9,7.3496]
[1761683527103,6.2431,3971.6,3971.0,3.0066]
[1761683527408,3.0353,3971.1,3970.2,3.2078]
[1761683527708,3.0353,3971.1,3970.3,4.343]
[1761683527902,3.0353,3970.9,3970.3,4.343]
[1761683528306,2.6216,3970.7,3970.3,4.343]
[1761683528506,2.6216,3970.5,3970.0,0.00240675]
[1761683528709,5.8294,3970.1,3970.0,0.00240675]
[1761683528909,5.8294,3970.1,3969.3,4.343]
[1761683528910,2.6216,3970.0,3969.3,4.343]
[1761683529212,2.6216,3969.4,3968.2,3.2078]
[1761683529406,0.3891,3969.9,3965.4,3.2101649]
[1761683529407,2.6216,3968.6,3967.0,3.2078]
[1761683529706,2.6216,3968.6,3967.3,4.343]
[1761683529909,2.5888,3968.0,3967.8,0.02743841]
[1761683530106,2.5614,3967.9,3966.9,0.03534458]
[1761683530310,2.5614,3967.1,3966.4,3.2078]
[1761683530505,3.2078,3967.2,3966.5,2.8919]
[1761683530709,3.2078,3967.6,3966.9,2.8919]
[1761683530914,3.2078,3967.6,3966.8,3.2078]
[1761683531709,3.2078,3967.1,3966.3,2.8919]
[1761683532011,5.7692,3967.1,3966.3,2.8919]